[Event "*** Titled Tuesday Blitz"]
[Site "Chess.com"]
[Date "2018.11.06"]
[Round "10"]
[White "PawnEatingZombie"]
[Black "ruvat"]
[Result "0-1"]
[WhiteElo "2093"]
[BlackElo "2303"]
[TimeControl "180+2"]
[EndTime "15:20:18 PST"]
[Termination "ruvat won on time"]

1. d4 {[%clk 0:03:01.9]} 1... d6 {[%clk 0:02:58.9]} 2. e4 {[%clk 0:03:01.2]}
2... Nf6 {[%clk 0:02:59.4]} 3. Nd2 {[%clk 0:03:00.8]} 3... g6 {[%clk 0:03:00.3]}
4. Ngf3 {[%clk 0:03:01.5]} 4... Bg7 {[%clk 0:03:01.8]} 5. Bd3 {[%clk 0:03:02.4]}
5... O-O {[%clk 0:03:03.3]} 6. O-O {[%clk 0:03:02.9]} 6... Nbd7 {[%clk
0:02:58.9]} 7. Re1 {[%clk 0:03:02.3]} 7... e5 {[%clk 0:02:59.7]} 8. dxe5 {[%clk
0:03:02.2]} 8... dxe5 {[%clk 0:02:59.8]} 9. Qe2 {[%clk 0:02:54.2]} 9... Nh5
{[%clk 0:02:59]} 10. g3 {[%clk 0:02:53.4]} 10... Nc5 {[%clk 0:02:56.9]} 11. Bc4
{[%clk 0:02:51.9]} 11... Bg4 {[%clk 0:02:56.7]} 12. Qe3 {[%clk 0:02:40.9]} 12...
Qe7 {[%clk 0:02:44]} 13. c3 {[%clk 0:02:36.9]} 13... Rad8 {[%clk 0:02:38.6]} 14.
b4 {[%clk 0:02:20.6]} 14... Na4 {[%clk 0:02:18.6]} 15. Bb3 {[%clk 0:02:09.2]}
15... Nb6 {[%clk 0:02:19.1]} 16. a4 {[%clk 0:02:04.3]} 16... a6 {[%clk
0:02:11.1]} 17. a5 {[%clk 0:02:04.2]} 17... Nc8 {[%clk 0:02:06.5]} 18. Nc4
{[%clk 0:01:48.3]} 18... h6 {[%clk 0:01:49.2]} 19. Nfd2 {[%clk 0:01:46.8]} 19...
Nd6 {[%clk 0:01:33.4]} 20. f3 {[%clk 0:01:31.1]} 20... Bc8 {[%clk 0:01:27.4]}
21. Qe2 {[%clk 0:01:29.2]} 21... Kh7 {[%clk 0:01:23.5]} 22. Nf1 {[%clk
0:01:27.5]} 22... Nb5 {[%clk 0:01:20.6]} 23. Qc2 {[%clk 0:01:16.7]} 23... Qf6
{[%clk 0:01:17.2]} 24. Kg2 {[%clk 0:01:13.5]} 24... Rfe8 {[%clk 0:01:00.2]} 25.
Be3 {[%clk 0:01:12.7]} 25... Bf8 {[%clk 0:00:57.3]} 26. Red1 {[%clk 0:01:10.3]}
26... Qe6 {[%clk 0:00:46.7]} 27. Kg1 {[%clk 0:01:01.9]} 27... Rxd1 {[%clk
0:00:43]} 28. Rxd1 {[%clk 0:01:02]} 28... Qh3 {[%clk 0:00:42.7]} 29. Nb2 {[%clk
0:00:39.3]} 29... Be6 {[%clk 0:00:32.7]} 30. Bxe6 {[%clk 0:00:30.1]} 30... Qxe6
{[%clk 0:00:34.6]} 31. c4 {[%clk 0:00:23.1]} 31... Nd6 {[%clk 0:00:30.3]} 32.
Bf2 {[%clk 0:00:17.7]} 32... Nf6 {[%clk 0:00:22.6]} 33. Ne3 {[%clk 0:00:17.9]}
33... c6 {[%clk 0:00:22.3]} 34. c5 {[%clk 0:00:15.8]} 34... Nc8 {[%clk 0:00:22]}
35. Nec4 {[%clk 0:00:15.1]} 35... Na7 {[%clk 0:00:21.5]} 36. Nd3 {[%clk
0:00:14.6]} 36... Nb5 {[%clk 0:00:21.3]} 37. Ndxe5 {[%clk 0:00:14.8]} 37... Bg7
{[%clk 0:00:19.5]} 38. Nd3 {[%clk 0:00:13.6]} 38... Nh5 {[%clk 0:00:15.7]} 39.
Be3 {[%clk 0:00:11.9]} 39... Nd4 {[%clk 0:00:14]} 40. Qa2 {[%clk 0:00:04.8]}
40... Nxf3+ {[%clk 0:00:13.1]} 41. Kf2 {[%clk 0:00:05.5]} 41... Qf6 {[%clk
0:00:09.7]} 0-1

[Event "*** Titled Tuesday Blitz"]
[Site "Chess.com"]
[Date "2018.11.06"]
[Round "10"]
[White "novocane"]
[Black "aquaticpineapples"]
[Result "0-1"]
[WhiteElo "2146"]
[BlackElo "2028"]
[TimeControl "180+2"]
[EndTime "15:20:18 PST"]
[Termination "aquaticpineapples won by resignation"]

1. d4 {[%clk 0:03:01.9]} 1... d5 {[%clk 0:03:00.6]} 2. c4 {[%clk 0:03:02.9]}
2... e6 {[%clk 0:03:01.4]} 3. Nc3 {[%clk 0:03:03.2]} 3... Nf6 {[%clk 0:03:02.9]}
4. cxd5 {[%clk 0:03:04.7]} 4... exd5 {[%clk 0:03:04.5]} 5. Bg5 {[%clk
0:03:06.1]} 5... Be7 {[%clk 0:03:05]} 6. Qc2 {[%clk 0:03:07.5]} 6... O-O {[%clk
0:03:05.3]} 7. e3 {[%clk 0:03:08.9]} 7... Bg4 {[%clk 0:02:55.6]} 8. Nge2 {[%clk
0:03:07.6]} 8... c6 {[%clk 0:02:55]} 9. Nf4 {[%clk 0:03:02.1]} 9... h6 {[%clk
0:02:51]} 10. Bxf6 {[%clk 0:02:23.7]} 10... Bxf6 {[%clk 0:02:52.9]} 11. f3
{[%clk 0:02:22]} 11... Bd7 {[%clk 0:02:42.3]} 12. O-O-O {[%clk 0:02:12.3]} 12...
a5 {[%clk 0:02:34.9]} 13. Kb1 {[%clk 0:02:10.4]} 13... Na6 {[%clk 0:02:34.2]}
14. Bxa6 {[%clk 0:02:00.1]} 14... Rxa6 {[%clk 0:02:36.1]} 15. e4 {[%clk
0:02:01.4]} 15... dxe4 {[%clk 0:02:24.1]} 16. fxe4 {[%clk 0:02:01.2]} 16... b5
{[%clk 0:02:23.7]} 17. e5 {[%clk 0:01:57.5]} 17... Bg5 {[%clk 0:02:19.3]} 18. g3
{[%clk 0:01:58.3]} 18... Qc8 {[%clk 0:02:15.8]} 19. Ka1 {[%clk 0:01:52.6]} 19...
Bf5 {[%clk 0:02:15.3]} 20. Qd2 {[%clk 0:01:19.2]} 20... a4 {[%clk 0:02:12.9]}
21. h4 {[%clk 0:01:18.6]} 21... Be7 {[%clk 0:01:58.9]} 22. Rc1 {[%clk
0:01:12.2]} 22... Qa8 {[%clk 0:01:48.7]} 23. g4 {[%clk 0:00:57]} 23... Bxg4
{[%clk 0:01:45.6]} 24. Rhg1 {[%clk 0:00:54.9]} 24... Bf5 {[%clk 0:01:44.3]} 25.
Nh5 {[%clk 0:00:50.9]} 25... Bg6 {[%clk 0:01:41.3]} 26. Nf4 {[%clk 0:00:35.4]}
26... b4 {[%clk 0:01:35.4]} 27. Nxg6 {[%clk 0:00:28.5]} 27... fxg6 {[%clk
0:01:36.4]} 28. Ne4 {[%clk 0:00:25.5]} 28... b3 {[%clk 0:01:25.1]} 29. a3 {[%clk
0:00:21.6]} 29... Rb6 {[%clk 0:01:25.9]} 30. Nc5 {[%clk 0:00:19.8]} 30... Qe8
{[%clk 0:01:17.3]} 31. Qd3 {[%clk 0:00:17.5]} 31... Rf5 {[%clk 0:01:07.4]} 32.
Rcf1 {[%clk 0:00:16.4]} 32... Rxf1+ {[%clk 0:00:54.8]} 33. Qxf1 {[%clk
0:00:16.6]} 33... Bxc5 {[%clk 0:00:53.7]} 34. dxc5 {[%clk 0:00:18.5]} 34... Rb5
{[%clk 0:00:50.9]} 35. h5 {[%clk 0:00:19.6]} 35... gxh5 {[%clk 0:00:44.4]} 36.
Qf6 {[%clk 0:00:19.8]} 36... Rb7 {[%clk 0:00:38.2]} 37. e6 {[%clk 0:00:16.6]}
37... Kh8 {[%clk 0:00:22.8]} 38. Qf5 {[%clk 0:00:14.8]} 38... Re7 {[%clk
0:00:22.4]} 39. Re1 {[%clk 0:00:15.4]} 39... Kg8 {[%clk 0:00:21.5]} 40. Kb1
{[%clk 0:00:15.3]} 40... Qf8 {[%clk 0:00:21.5]} 41. Qxh5 {[%clk 0:00:14.8]}
41... Qf2 {[%clk 0:00:21.3]} 42. Rc1 {[%clk 0:00:13.1]} 42... Rxe6 {[%clk
0:00:21.7]} 43. Qh3 {[%clk 0:00:13.3]} 43... Re2 {[%clk 0:00:20.9]} 44. Qc8+
{[%clk 0:00:13.7]} 44... Kh7 {[%clk 0:00:21.2]} 0-1

[Event "*** Titled Tuesday Blitz"]
[Site "Chess.com"]
[Date "2018.11.06"]
[Round "10"]
[White "biostatistician"]
[Black "TST2014"]
[Result "1/2-1/2"]
[WhiteElo "2643"]
[BlackElo "2519"]
[TimeControl "180+2"]
[EndTime "15:20:20 PST"]
[Termination "Game drawn by repetition"]

1. d4 {[%clk 0:03:01.8]} 1... Nf6 {[%clk 0:02:59.5]} 2. Nf3 {[%clk 0:03:03.7]}
2... g6 {[%clk 0:02:57.7]} 3. c4 {[%clk 0:03:05]} 3... Bg7 {[%clk 0:02:58.5]} 4.
Nc3 {[%clk 0:03:06.9]} 4... O-O {[%clk 0:02:59.6]} 5. e4 {[%clk 0:03:08.5]} 5...
d6 {[%clk 0:02:59.9]} 6. Be2 {[%clk 0:03:10.2]} 6... e5 {[%clk 0:02:59.1]} 7.
dxe5 {[%clk 0:03:11.6]} 7... dxe5 {[%clk 0:02:59.5]} 8. Qxd8 {[%clk 0:03:13.5]}
8... Rxd8 {[%clk 0:02:59.8]} 9. Bg5 {[%clk 0:03:15.1]} 9... Re8 {[%clk
0:02:57.3]} 10. Nd5 {[%clk 0:03:15.5]} 10... Nxd5 {[%clk 0:02:55.4]} 11. cxd5
{[%clk 0:03:16.6]} 11... c6 {[%clk 0:02:55.2]} 12. Bc4 {[%clk 0:03:18.1]} 12...
cxd5 {[%clk 0:02:52.6]} 13. Bxd5 {[%clk 0:03:20]} 13... Nc6 {[%clk 0:02:51.9]}
14. O-O-O {[%clk 0:03:21.3]} 14... Bg4 {[%clk 0:02:50]} 15. Kb1 {[%clk
0:03:22.1]} 15... Bxf3 {[%clk 0:02:50.3]} 16. gxf3 {[%clk 0:03:22.8]} 16... Kf8
{[%clk 0:02:38.3]} 17. Be3 {[%clk 0:03:15.2]} 17... Rac8 {[%clk 0:02:33.4]} 18.
Bxc6 {[%clk 0:03:06.2]} 18... Rxc6 {[%clk 0:02:31.6]} 19. Bxa7 {[%clk 0:03:07]}
19... b6 {[%clk 0:02:30]} 20. Rd7 {[%clk 0:03:06.6]} 20... Bh6 {[%clk
0:02:11.1]} 21. a3 {[%clk 0:02:50.6]} 21... Re7 {[%clk 0:01:49.3]} 22. Rxe7
{[%clk 0:02:47.1]} 22... Kxe7 {[%clk 0:01:49.9]} 23. Rd1 {[%clk 0:02:48.7]}
23... Bf4 {[%clk 0:01:36.1]} 24. h3 {[%clk 0:02:49.5]} 24... Kf6 {[%clk
0:01:29.9]} 25. Bb8 {[%clk 0:02:02.3]} 25... Kg5 {[%clk 0:01:24.1]} 26. Rd5
{[%clk 0:02:00.5]} 26... f6 {[%clk 0:01:20.9]} 27. Rd6 {[%clk 0:01:54.9]} 27...
Rxd6 {[%clk 0:01:14.6]} 28. Bxd6 {[%clk 0:01:56.8]} 28... b5 {[%clk 0:01:07.2]}
29. Be7 {[%clk 0:01:54.6]} 29... Kh4 {[%clk 0:01:06.1]} 30. Bxf6+ {[%clk
0:01:54.8]} 30... Kxh3 {[%clk 0:01:07.6]} 31. b3 {[%clk 0:01:38]} 31... Kg2
{[%clk 0:01:08.3]} 32. a4 {[%clk 0:01:39.3]} 32... bxa4 {[%clk 0:01:08.4]} 33.
bxa4 {[%clk 0:01:41.2]} 33... Kxf2 {[%clk 0:01:06.4]} 34. a5 {[%clk 0:01:42.4]}
34... Kxf3 {[%clk 0:01:06.6]} 35. a6 {[%clk 0:01:43.7]} 35... Be3 {[%clk
0:01:07.7]} 36. Bxe5 {[%clk 0:01:45.2]} 36... Kxe4 {[%clk 0:01:08.5]} 37. Bb8
{[%clk 0:01:40.1]} 37... h5 {[%clk 0:01:08.5]} 38. Kc2 {[%clk 0:01:40.6]} 38...
g5 {[%clk 0:01:07]} 39. Kd1 {[%clk 0:01:41.9]} 39... Kf3 {[%clk 0:01:06.5]} 40.
Ke1 {[%clk 0:01:41.4]} 40... Kg2 {[%clk 0:01:06.4]} 41. Ke2 {[%clk 0:01:34.8]}
41... Bf2 {[%clk 0:01:04]} 42. Be5 {[%clk 0:01:08.2]} 42... g4 {[%clk 0:01:01]}
43. Kd3 {[%clk 0:00:59.4]} 43... Ba7 {[%clk 0:00:59.1]} 44. Bd4 {[%clk
0:01:00.2]} 44... Bb8 {[%clk 0:00:52]} 45. Be5 {[%clk 0:00:59.4]} 45... Ba7
{[%clk 0:00:42]} 46. Bd4 {[%clk 0:01:00.6]} 46... Bb8 {[%clk 0:00:20.8]} 47. Be5
{[%clk 0:00:52.1]} 47... Ba7 {[%clk 0:00:20.5]} 48. Bd4 {[%clk 0:00:53.1]} 48...
Bb8 {[%clk 0:00:20.7]} 49. Be5 {[%clk 0:00:53.9]} 49... Ba7 {[%clk 0:00:21.9]}
50. Bd4 {[%clk 0:00:55.3]} 50... Bb8 {[%clk 0:00:13.8]} 51. Be5 {[%clk
0:00:56.2]} 51... Ba7 {[%clk 0:00:14.2]} 1/2-1/2

[Event "*** Titled Tuesday Blitz"]
[Site "Chess.com"]
[Date "2018.11.06"]
[Round "10"]
[White "DawidCzerw"]
[Black "1random"]
[Result "1-0"]
[WhiteElo "2289"]
[BlackElo "2478"]
[TimeControl "180+2"]
[EndTime "15:20:24 PST"]
[Termination "DawidCzerw won by checkmate"]

1. d4 {[%clk 0:03:01.9]} 1... Nf6 {[%clk 0:03:00.8]} 2. c4 {[%clk 0:03:02.3]}
2... e6 {[%clk 0:03:02]} 3. Nf3 {[%clk 0:03:02.9]} 3... d5 {[%clk 0:03:03.2]} 4.
g3 {[%clk 0:03:03.8]} 4... Be7 {[%clk 0:03:04.3]} 5. Bg2 {[%clk 0:03:05.1]} 5...
O-O {[%clk 0:03:05.9]} 6. O-O {[%clk 0:03:06.6]} 6... dxc4 {[%clk 0:03:07.6]} 7.
Qc2 {[%clk 0:03:07.8]} 7... c6 {[%clk 0:03:08.3]} 8. Qxc4 {[%clk 0:03:06.5]}
8... b5 {[%clk 0:03:09.8]} 9. Qc2 {[%clk 0:03:06.9]} 9... Bb7 {[%clk 0:03:11.4]}
10. Nc3 {[%clk 0:03:07.8]} 10... Nbd7 {[%clk 0:03:09.6]} 11. Bg5 {[%clk
0:02:59.3]} 11... Rc8 {[%clk 0:03:04.6]} 12. e4 {[%clk 0:02:53.1]} 12... b4
{[%clk 0:02:51.9]} 13. e5 {[%clk 0:02:40.4]} 13... bxc3 {[%clk 0:02:32.5]} 14.
exf6 {[%clk 0:02:40.8]} 14... Nxf6 {[%clk 0:01:58.6]} 15. bxc3 {[%clk
0:02:23.5]} 15... c5 {[%clk 0:01:43.4]} 16. Qb2 {[%clk 0:02:05.7]} 16... Ba8
{[%clk 0:01:35.6]} 17. Rfd1 {[%clk 0:02:01.9]} 17... Ne4 {[%clk 0:01:17.6]} 18.
Be3 {[%clk 0:01:48.1]} 18... Qa5 {[%clk 0:00:57.9]} 19. Rac1 {[%clk 0:01:38.7]}
19... Bf6 {[%clk 0:00:52.5]} 20. Ne5 {[%clk 0:01:25.7]} 20... cxd4 {[%clk
0:00:43.1]} 21. cxd4 {[%clk 0:01:19.1]} 21... Nc3 {[%clk 0:00:35.3]} 22. Re1
{[%clk 0:00:52.9]} 22... Bxg2 {[%clk 0:00:34.9]} 23. Kxg2 {[%clk 0:00:54.6]}
23... Bxe5 {[%clk 0:00:25.6]} 24. dxe5 {[%clk 0:00:56.5]} 24... Qxe5 {[%clk
0:00:26.6]} 25. Kg1 {[%clk 0:00:54.4]} 25... Qa5 {[%clk 0:00:09.6]} 26. Bd2
{[%clk 0:00:49]} 26... Na4 {[%clk 0:00:09.6]} 27. Qd4 {[%clk 0:00:28.5]} 27...
Qa6 {[%clk 0:00:07.1]} 28. Qg4 {[%clk 0:00:19.3]} 28... Rcd8 {[%clk 0:00:05.4]}
29. Bh6 {[%clk 0:00:16.5]} 29... g6 {[%clk 0:00:04.2]} 30. Bxf8 {[%clk
0:00:12.4]} 30... Rxf8 {[%clk 0:00:06.1]} 31. h4 {[%clk 0:00:13.7]} 31... h5
{[%clk 0:00:06.7]} 32. Qg5 {[%clk 0:00:13.7]} 32... Nb2 {[%clk 0:00:06.4]} 33.
Rc7 {[%clk 0:00:13.5]} 33... Qxa2 {[%clk 0:00:05.5]} 34. Re2 {[%clk 0:00:09.6]}
34... Qb1+ {[%clk 0:00:05.3]} 35. Kh2 {[%clk 0:00:10.1]} 35... a5 {[%clk
0:00:05.8]} 36. Rb7 {[%clk 0:00:05.4]} 36... a4 {[%clk 0:00:03.6]} 37. Rexb2
{[%clk 0:00:06.3]} 37... Qd3 {[%clk 0:00:04.5]} 38. Rb8 {[%clk 0:00:07]} 38...
a3 {[%clk 0:00:04.7]} 39. Rxf8+ {[%clk 0:00:07.4]} 39... Kxf8 {[%clk 0:00:05.8]}
40. Rb8+ {[%clk 0:00:07.4]} 40... Kg7 {[%clk 0:00:07.3]} 41. Qd8 {[%clk
0:00:06.6]} 41... a2 {[%clk 0:00:02.4]} 42. Qh8# {[%clk 0:00:05.6]} 1-0

[Event "*** Titled Tuesday Blitz"]
[Site "Chess.com"]
[Date "2018.11.06"]
[Round "10"]
[White "Federtiu"]
[Black "SergeiAza"]
[Result "0-1"]
[WhiteElo "2632"]
[BlackElo "2804"]
[TimeControl "180+2"]
[EndTime "15:20:25 PST"]
[Termination "SergeiAza won by resignation"]

1. c4 {[%clk 0:03:01.9]} 1... e5 {[%clk 0:02:59.9]} 2. Nc3 {[%clk 0:03:01]} 2...
Nf6 {[%clk 0:03:01.4]} 3. e3 {[%clk 0:02:58.2]} 3... Nc6 {[%clk 0:03:02.8]} 4.
g4 {[%clk 0:02:57.6]} 4... h6 {[%clk 0:02:48.6]} 5. Bg2 {[%clk 0:02:57.8]} 5...
Bb4 {[%clk 0:02:45]} 6. Nd5 {[%clk 0:02:56.4]} 6... d6 {[%clk 0:02:33.8]} 7. Qa4
{[%clk 0:02:53.1]} 7... Bd7 {[%clk 0:02:27.1]} 8. Nxb4 {[%clk 0:02:47.2]} 8...
Nd4 {[%clk 0:02:18.9]} 9. Qd1 {[%clk 0:02:47.5]} 9... Bxg4 {[%clk 0:02:19.6]}
10. f3 {[%clk 0:02:48.6]} 10... Ne4 {[%clk 0:02:14.8]} 11. h4 {[%clk 0:02:40.3]}
11... Ng3 {[%clk 0:02:14.2]} 12. Rh2 {[%clk 0:02:29.9]} 12... Bh5 {[%clk
0:01:26.8]} 13. exd4 {[%clk 0:02:24.5]} 13... O-O {[%clk 0:01:27.9]} 14. d3
{[%clk 0:02:18.3]} 14... exd4 {[%clk 0:01:27]} 15. Bf4 {[%clk 0:02:19.3]} 15...
Re8+ {[%clk 0:01:27.8]} 16. Kd2 {[%clk 0:02:13.8]} 16... Nf5 {[%clk 0:01:28.6]}
17. Ne2 {[%clk 0:02:10.3]} 17... Qf6 {[%clk 0:01:28]} 18. Nd5 {[%clk 0:02:09.5]}
18... Qd8 {[%clk 0:01:23.1]} 19. Bh3 {[%clk 0:02:02.6]} 19... c6 {[%clk
0:01:13.2]} 20. Bxf5 {[%clk 0:01:36]} 20... cxd5 {[%clk 0:01:14.3]} 21. Bg4
{[%clk 0:01:36.7]} 21... Bg6 {[%clk 0:01:09.4]} 22. Qa4 {[%clk 0:01:26.6]} 22...
Qf6 {[%clk 0:01:03.7]} 23. Re1 {[%clk 0:01:12.4]} 23... Rxe2+ {[%clk 0:00:34.8]}
24. Rhxe2 {[%clk 0:01:14.3]} 24... Qxf4+ {[%clk 0:00:35.9]} 25. Kc2 {[%clk
0:01:04.2]} 25... h5 {[%clk 0:00:37.3]} 26. Re8+ {[%clk 0:00:31.1]} 26... Rxe8
{[%clk 0:00:38.2]} 27. Qxe8+ {[%clk 0:00:33]} 27... Kh7 {[%clk 0:00:39.5]} 28.
Bc8 {[%clk 0:00:32.5]} 28... dxc4 {[%clk 0:00:36.4]} 29. Kb1 {[%clk 0:00:30.9]}
29... cxd3 {[%clk 0:00:36.4]} 30. Ka1 {[%clk 0:00:28.9]} 30... d2 {[%clk
0:00:36.4]} 31. Rd1 {[%clk 0:00:26.1]} 31... Qe3 {[%clk 0:00:16.6]} 32. Qa4
{[%clk 0:00:21.6]} 32... Bd3 {[%clk 0:00:14.9]} 33. Bxb7 {[%clk 0:00:17.2]}
33... g6 {[%clk 0:00:13.9]} 34. Be4 {[%clk 0:00:14.2]} 34... Be2 {[%clk
0:00:13.4]} 35. Qe8 {[%clk 0:00:06.9]} 35... Kg7 {[%clk 0:00:11.8]} 36. Qa4
{[%clk 0:00:02.3]} 36... Bxd1 {[%clk 0:00:07.7]} 37. Qxd1 {[%clk 0:00:04.2]}
37... d3 {[%clk 0:00:09.2]} 38. Bd5 {[%clk 0:00:04.8]} 38... Qe1 {[%clk
0:00:08.4]} 39. Bb3 {[%clk 0:00:05.4]} 39... g5 {[%clk 0:00:08.9]} 40. hxg5
{[%clk 0:00:05.9]} 40... h4 {[%clk 0:00:09.6]} 41. a4 {[%clk 0:00:04.4]} 41...
h3 {[%clk 0:00:10.3]} 42. Ka2 {[%clk 0:00:06.1]} 42... Qxd1 {[%clk 0:00:10.5]}
43. Bxd1 {[%clk 0:00:08]} 43... h2 {[%clk 0:00:12.2]} 0-1

[Event "*** Titled Tuesday Blitz"]
[Site "Chess.com"]
[Date "2018.11.06"]
[Round "10"]
[White "Ramosha"]
[Black "Vuk2000"]
[Result "0-1"]
[WhiteElo "2490"]
[BlackElo "2682"]
[TimeControl "180+2"]
[EndTime "15:20:26 PST"]
[Termination "Vuk2000 won by resignation"]

1. d4 {[%clk 0:03:01.5]} 1... Nf6 {[%clk 0:03:00.4]} 2. Nf3 {[%clk 0:03:00.5]}
2... e6 {[%clk 0:03:01.2]} 3. c4 {[%clk 0:03:01.2]} 3... b6 {[%clk 0:03:01.9]}
4. a3 {[%clk 0:03:02]} 4... Bb7 {[%clk 0:03:02.8]} 5. Nc3 {[%clk 0:03:02.5]}
5... d5 {[%clk 0:03:03.9]} 6. cxd5 {[%clk 0:03:03.3]} 6... exd5 {[%clk
0:03:04.9]} 7. g3 {[%clk 0:02:59.9]} 7... a6 {[%clk 0:02:58.2]} 8. Bg2 {[%clk
0:03:00.3]} 8... Bd6 {[%clk 0:02:59.4]} 9. Bg5 {[%clk 0:02:59.4]} 9... O-O
{[%clk 0:02:59.8]} 10. O-O {[%clk 0:02:59.8]} 10... h6 {[%clk 0:03:00.6]} 11.
Bf4 {[%clk 0:02:55]} 11... Bxf4 {[%clk 0:02:59.5]} 12. gxf4 {[%clk 0:02:55.9]}
12... Nc6 {[%clk 0:02:58]} 13. Ne5 {[%clk 0:02:51.6]} 13... Ne7 {[%clk
0:02:58.7]} 14. e3 {[%clk 0:02:43.3]} 14... Ne4 {[%clk 0:02:35.5]} 15. Nxe4
{[%clk 0:02:30.7]} 15... dxe4 {[%clk 0:02:35.4]} 16. Qc2 {[%clk 0:02:31.1]}
16... f6 {[%clk 0:01:54]} 17. Nc4 {[%clk 0:02:31.8]} 17... f5 {[%clk 0:01:43.4]}
18. Ne5 {[%clk 0:02:29.9]} 18... Rc8 {[%clk 0:01:42.6]} 19. Rac1 {[%clk
0:02:27.7]} 19... Qd6 {[%clk 0:01:39.3]} 20. Qb3+ {[%clk 0:02:20.1]} 20... Bd5
{[%clk 0:01:39.9]} 21. Qb4 {[%clk 0:02:20.8]} 21... c5 {[%clk 0:01:20.8]} 22.
dxc5 {[%clk 0:02:16.4]} 22... bxc5 {[%clk 0:01:20.3]} 23. Qa5 {[%clk 0:02:02.9]}
23... c4 {[%clk 0:01:01.5]} 24. Rfd1 {[%clk 0:01:59.2]} 24... Rc5 {[%clk
0:00:57.1]} 25. Qc3 {[%clk 0:01:22.2]} 25... Rfc8 {[%clk 0:00:46.1]} 26. Rd2
{[%clk 0:01:15.5]} 26... Qb6 {[%clk 0:00:25.6]} 27. Rcd1 {[%clk 0:01:02.4]}
27... Qb3 {[%clk 0:00:25.6]} 28. Bf1 {[%clk 0:00:56.4]} 28... Qxc3 {[%clk
0:00:25.7]} 29. bxc3 {[%clk 0:00:57.3]} 29... Ra5 {[%clk 0:00:24.9]} 30. Rd4
{[%clk 0:00:33]} 30... Rxa3 {[%clk 0:00:19.1]} 31. Rxd5 {[%clk 0:00:33.8]} 31...
Nxd5 {[%clk 0:00:20.2]} 32. Rxd5 {[%clk 0:00:34.9]} 32... Rxc3 {[%clk
0:00:21.9]} 33. Kg2 {[%clk 0:00:32.3]} 33... Rc2 {[%clk 0:00:10.3]} 34. h4
{[%clk 0:00:30.7]} 34... c3 {[%clk 0:00:11.5]} 35. Bc4 {[%clk 0:00:31.1]} 35...
Kh7 {[%clk 0:00:11.6]} 36. Rd7 {[%clk 0:00:23.5]} 36... Rd2 {[%clk 0:00:11.7]}
37. Bf7 {[%clk 0:00:17.1]} 37... Rxd7 {[%clk 0:00:10.3]} 38. Bg6+ {[%clk
0:00:15.9]} 38... Kg8 {[%clk 0:00:10.5]} 39. Nxd7 {[%clk 0:00:16]} 39... c2
{[%clk 0:00:11.1]} 40. Ne5 {[%clk 0:00:14.5]} 40... c1=Q {[%clk 0:00:12.2]} 41.
Bf7+ {[%clk 0:00:16.4]} 41... Kf8 {[%clk 0:00:13.4]} 42. Be6 {[%clk 0:00:16.9]}
42... Ke7 {[%clk 0:00:13.2]} 43. Bd5 {[%clk 0:00:15]} 43... Rc5 {[%clk
0:00:13.1]} 44. Ng6+ {[%clk 0:00:14.7]} 44... Kf6 {[%clk 0:00:14]} 0-1

[Event "*** Titled Tuesday Blitz"]
[Site "Chess.com"]
[Date "2018.11.06"]
[Round "10"]
[White "RichardLeyvaP"]
[Black "Alexander_Moskalenko"]
[Result "0-1"]
[WhiteElo "2503"]
[BlackElo "2870"]
[TimeControl "180+2"]
[EndTime "15:20:37 PST"]
[Termination "Alexander_Moskalenko won on time"]

1. e4 {[%clk 0:02:58.2]} 1... c5 {[%clk 0:02:59.6]} 2. Nf3 {[%clk 0:02:58.8]}
2... d6 {[%clk 0:03:01.5]} 3. d4 {[%clk 0:02:58.4]} 3... cxd4 {[%clk 0:03:03.4]}
4. Nxd4 {[%clk 0:03:00]} 4... Nf6 {[%clk 0:03:05.3]} 5. Nc3 {[%clk 0:03:01.3]}
5... a6 {[%clk 0:03:06.9]} 6. f3 {[%clk 0:03:00.7]} 6... e6 {[%clk 0:03:05.1]}
7. Be3 {[%clk 0:02:48.9]} 7... h5 {[%clk 0:03:03.8]} 8. Bc4 {[%clk 0:02:40.7]}
8... b5 {[%clk 0:03:04.1]} 9. Bb3 {[%clk 0:02:41.9]} 9... Nbd7 {[%clk
0:03:01.1]} 10. O-O {[%clk 0:02:27.1]} 10... Ne5 {[%clk 0:03:01.9]} 11. Qe2
{[%clk 0:02:21.6]} 11... Qc7 {[%clk 0:02:54.1]} 12. a4 {[%clk 0:02:17.3]} 12...
b4 {[%clk 0:02:47.6]} 13. Na2 {[%clk 0:02:18]} 13... Rb8 {[%clk 0:02:48.9]} 14.
c3 {[%clk 0:02:00.9]} 14... bxc3 {[%clk 0:02:28.7]} 15. Nxc3 {[%clk 0:02:02]}
15... Be7 {[%clk 0:02:27.8]} 16. Rfc1 {[%clk 0:01:56.5]} 16... Qb7 {[%clk
0:02:28.4]} 17. h3 {[%clk 0:01:25.9]} 17... Bd7 {[%clk 0:02:23.7]} 18. a5 {[%clk
0:01:22.9]} 18... O-O {[%clk 0:02:22.3]} 19. Na4 {[%clk 0:01:15.3]} 19... Bxa4
{[%clk 0:02:11.8]} 20. Bxa4 {[%clk 0:01:15.5]} 20... Qxb2 {[%clk 0:02:07.5]} 21.
Qxa6 {[%clk 0:01:16.6]} 21... d5 {[%clk 0:01:58.7]} 22. Nc6 {[%clk 0:01:13.8]}
22... Nxc6 {[%clk 0:01:57.5]} 23. Qxc6 {[%clk 0:01:14.6]} 23... dxe4 {[%clk
0:01:56.3]} 24. fxe4 {[%clk 0:01:15.8]} 24... Qe5 {[%clk 0:01:46.9]} 25. a6
{[%clk 0:01:07.6]} 25... Bd6 {[%clk 0:01:34.5]} 26. a7 {[%clk 0:00:59.1]} 26...
Rb2 {[%clk 0:01:35.2]} 27. Bc2 {[%clk 0:00:50]} 27... Qg3 {[%clk 0:00:48.8]} 28.
Bf2 {[%clk 0:00:48.7]} 28... Qh2+ {[%clk 0:00:49.5]} 29. Kf1 {[%clk 0:00:49.9]}
29... Qh1+ {[%clk 0:00:47.9]} 30. Bg1 {[%clk 0:00:32.8]} 30... Bh2 {[%clk
0:00:44.5]} 31. Kf2 {[%clk 0:00:33.9]} 31... Bxg1+ {[%clk 0:00:45.3]} 32. Rxg1
{[%clk 0:00:34.5]} 32... Qh2 {[%clk 0:00:46.9]} 33. a8=Q {[%clk 0:00:20.2]}
33... Rxa8 {[%clk 0:00:37.3]} 34. Rxa8+ {[%clk 0:00:20]} 34... Kh7 {[%clk
0:00:38.5]} 35. e5+ {[%clk 0:00:07.9]} 35... g6 {[%clk 0:00:37.6]} 36. exf6
{[%clk 0:00:07.4]} 36... Qf4+ {[%clk 0:00:35.5]} 37. Ke2 {[%clk 0:00:08.7]}
37... Qe5+ {[%clk 0:00:37]} 38. Kd2 {[%clk 0:00:09.6]} 38... Qd4+ {[%clk
0:00:37.7]} 39. Kc1 {[%clk 0:00:09.7]} 39... Rb6 {[%clk 0:00:39.1]} 40. Qe8
{[%clk 0:00:04.8]} 40... Qxg1+ {[%clk 0:00:39]} 41. Bd1 {[%clk 0:00:05.7]} 41...
Qe3+ {[%clk 0:00:37.2]} 42. Kc2 {[%clk 0:00:05.7]} 42... Qb3+ {[%clk 0:00:38.9]}
43. Kd2 {[%clk 0:00:04.7]} 43... Rd6+ {[%clk 0:00:40]} 44. Ke2 {[%clk
0:00:05.8]} 44... Qxd1+ {[%clk 0:00:41.3]} 45. Kf2 {[%clk 0:00:07.3]} 45... Qd4+
{[%clk 0:00:28.6]} 46. Ke2 {[%clk 0:00:05.6]} 46... Qe5+ {[%clk 0:00:26.3]} 47.
Kf3 {[%clk 0:00:04.6]} 47... Qxf6+ {[%clk 0:00:28.2]} 0-1